Cogmind - Beta 16.1 @@@ ROGUE MODE // 2026.04.13 @ 21:07:48 Player: skelll Result: Destroyed by G-34 Mercenary with Small Laser Performance ------------- Evolutions (1) 500 Regions Visited (2) 400 Robots Destroyed (32) 160 Value Destroyed (904) 904 Prototype IDs (0) 0 Alien Tech Used (0) 0 Bonus (0) 0 TOTAL SCORE: 1964 Bonus ------- None Cogmind --------- Core Integrity 0/400 Matter 280/300 Energy 83/100 System Corruption 2% Temperature Cool (6) Movement Walking (260) Ox2 Location -9/Materials Parts ------- > --- POWER (1) -------- (None) > --- PROPULSION (3) --- Aluminum Leg Aluminum Leg > --- UTILITY (3) ------ High-capacity Storage Unit Power Shielding > --- WEAPON (2) ------- Hammer > --- INVENTORY (20) --- Ion Engine Improved Ion Engine VTOL Module Heat Sink Structural Scanner Light Armor Plating Shield Generator Grenade Launcher Rocket Launcher Maul Maul Peak State ------------ > --- POWER ------------ Improved Ion Engine > --- PROPULSION ------- Aluminum Leg Aluminum Leg Aluminum Leg > --- UTILITY ---------- Large Storage Unit Large Matter Pod Hardened Light Armor Plating > --- WEAPON ----------- Heavy Assault Rifle Shotgun > --- INVENTORY -------- Ion Engine Aluminum Leg Aluminum Leg VTOL Module Heat Sink Structural Scanner Light Armor Plating Beam Rifle Light Assault Rifle Heavy Assault Rifle Grenade Launcher Rocket Launcher Maul Maul [Rating: 15] Favorites ----------- Power Light Ion Engine Engine Light Ion Engine Propulsion Aluminum Leg Treads Light Treads Leg Aluminum Leg Utility Large Storage Unit Device Seismic Detector Storage Large Storage Unit Protection Core Shielding Weapon Shotgun Energy Gun Small Laser Ballistic Gun Shotgun Ballistic Cannon Light Cannon Launcher Grenade Launcher Impact Weapon Hammer Build | -11 -10 -9 ------- Run | Yrd Mat Mat Slots Evolved 2 | . . 2 Power . | . . . Propulsion 1 | . . 1 Utility 1 | . . 1 Weapon . | . . . Parts Attached 39 | 6 11 22 Power 6 | 1 1 4 Engine 6 | 1 1 4 Core . | . . . Reactor . | . . . Propulsion 10 | 2 3 5 Treads 2 | 2 . . Leg 8 | . 3 5 Wheel . | . . . Hover . | . . . Flight . | . . . Utility 10 | 1 4 5 Device 1 | . . 1 Storage 5 | 1 2 2 Processor . | . . . Hackware . | . . . Protection 4 | . 2 2 Artifact . | . . . Weapon 13 | 2 3 8 Energy Gun 4 | 2 1 1 Energy Cannon . | . . . Ballistic Gun 5 | . . 5 Ballistic Cannon 2 | . 1 1 Launcher 1 | . 1 . Special Weapon . | . . . Impact Weapon 1 | . . 1 Slashing Weapon . | . . . Piercing Weapon . | . . . Special Melee Weapon . | . . . Unidentified Prototypes . | . . . Parts Lost 13 | . 1 12 Power 3 | . . 3 Propulsion 3 | . . 3 Utility 2 | . . 2 Weapon 5 | . 1 4 Highest Loss Streak 9 | . 1 9 To Critical Strikes 1 | . . 1 Average Backups 12 | 3 11 14 Power 1 | . 1 1 Propulsion 2 | 1 1 2 Utility 3 | . 4 3 Weapon 5 | . 4 6 Tool/Special . | . . . Unused Backups 17 | . 6 11 Power 2 | . 1 1 Propulsion 3 | . 2 1 Utility 7 | . 2 5 Weapon 4 | . . 4 Tool/Special 1 | . 1 . Average Slot Usage (%) 97 | . 99 96 Engine 11 | . 14 10 Treads 4 | . 10 . Leg 25 | . 17 31 Device 3 | . . 6 Storage 14 | . 14 14 Protection 12 | . 13 10 Energy Gun 4 | . 11 . Ballistic Gun 10 | . . 17 Ballistic Cannon 5 | . 9 3 Launcher 3 | . 7 . Peak Build Rating 15 | 6 8 15 Average Rating 10 | 5 7 12 On Entrance 4 | . 6 8 Avg Prop Armor Cover (%) . | . . . Naked Turns . | . . . Heaviest Build 57 | 13 30 57 Greatest Support 40 | 40 40 30 Greatest Overweight (x) 3 | 2 1 3 Average Overweight (x) . | . . . Largest Inventory Capacity 20 | 8 15 20 Average Capacity 14 | 6 12 15 Most Carried 16 | 6 15 16 Average Carried 13 | 3 11 14 Final Capacity 20 | 8 15 20 Final Carried 15 | 6 15 11 Class Distribution -------------------- 80% | Mutant 19% | Scavenger-Mutant Dominant Class ---------------- Mutant | -10/Materials Mutant | -9/Materials Resources | -11 -10 -9 ----------- Run | Yrd Mat Mat Matter Collected 1111 | 233 279 599 Remotely . | . . . Salvage Created 936 | . 364 572 Parts 61 | . 20 41 Haulers Intercepted . | . . . Recyclers Shooed . | . . . Parts Field Recycled . | . . . Retrieved Matter . | . . . Parts Self-Destructed . | . . . Prevented . | . . . Parts Restored . | . . . Kills | -11 -10 -9 ------- Run | Yrd Mat Mat Combat Hostiles Destroyed 27 | . 10 17 Melee 1 | . . 1 Guns 16 | . 2 14 Cannons 8 | . 6 2 AOE 1 | . 1 . Classes Destroyed 6 | . 3 3 Builder 2 | . 1 1 Tunneler 1 | . 1 . Watcher 2 | . . 2 Swarmer 7 | . . 7 Grunt 14 | . 10 4 Sentry 6 | . . 6 Best Kill Streak 6 | . 4 6 Combat Bots Only 5 | . 2 5 Max Kills in Single Turn 3 | . 3 2 Gunslinging . | . . . Exploded 1 | . 1 . Melee 1 | . . 1 Uniques/NPCs Destroyed . | . . . Combat | -11 -10 -9 -------- Run | Yrd Mat Mat Hostile Shots Fired 275 | . 84 191 Missed 60 | . 14 46 Hits 215 | . 70 145 Projectile 215 | . 70 145 Critical Strikes 5 | . . 5 Damage Taken 2490 | . 803 1687 Core 541 | . 141 400 Absorbed by Shields . | . . . Redirected to Shielding 48 | . 22 26 Core Remaining (%) 71 | 100 43 . Volleys Fired 115 | . 43 72 Largest 2 | . 2 2 Hottest 90 | . 90 79 Shots Fired 203 | . 70 133 Gun 164 | . 45 119 Cannon 38 | . 24 14 Launcher 1 | . 1 . Special . | . . . Kinetic 145 | . 24 121 Thermal 57 | . 45 12 Explosive 1 | . 1 . Electromagnetic . | . . . Robot Hit Streak 15 | . 13 15 Robot Miss Streak 10 | . 5 10 Penetration Max . | . . . Secondary Targets 1 | . . 1 Max Gunslinging Chain 1 | . . 1 Shots Hit Robots 138 | . 49 89 Core Hits 58 | . 18 40 Critical Kills 1 | . . 1 Critical Parts Destroyed . | . . . Critical Strikes 5 | . 2 3 Burn 4 | . 2 2 Smash 1 | . . 1 Melee Attacks 1 | . . 1 Impact 1 | . . 1 Slashing . | . . . Piercing . | . . . Sneak Attacks . | . . . Combat Hostiles . | . . . Follow-up Attacks . | . . . Damage Inflicted 2222 | . 854 1368 Guns 1561 | . 408 1153 Cannons 444 | . 268 176 Explosions 163 | . 163 . Melee 28 | . . 28 Ramming 26 | . 15 11 Kinetic 1525 | . 268 1257 Thermal 480 | . 408 72 Explosive 163 | . 163 . Electromagnetic . | . . . Impact 28 | . . 28 Slashing . | . . . Piercing . | . . . Highest Corruption 2 | . . 2 Average Corruption 1 | . . 1 Corruption Purged . | . . . Corruption Blocked . | . . . Effects 9 | . . 9 Message Errors 1 | . . 1 Matter Fused 3 | . . 3 Heat Flow Errors 1 | . . 1 Energy Discharges 1 | . . 1 Data Loss (minor) 2 | . . 2 Misfires 1 | . . 1 Overload Shots . | . . . Overflow Damage 9 | . . 9 Projectiles 9 | . . 9 Explosions . | . . . Melee . | . . . Knockbacks 9 | . 7 2 Impact . | . . . Kinetic 9 | . 7 2 Secondary . | . . . Self-Inflicted Damage . | . . . Shots . | . . . Rammed . | . . . Targets Rammed 5 | . 3 2 Kicked 5 | . 3 2 Crushed . | . . . Highest Temperature 347 | . 347 249 Average Temperature 102 | . 151 46 Received Heat Transfer 921 | . 432 489 Effects 3 | . 3 . Shutdowns 1 | . 1 . Energy Bleed 1 | . 1 . Matter Decay 1 | . 1 . Siege Activations . | . . . Martial Activations . | . . . Shielding Activations . | . . . Robots Disrupted . | . . . Combat Hostiles . | . . . Robots Corrupted . | . . . Combat Hostiles . | . . . Parts Fried . | . . . Impact Corruptions . | . . . Robots Melted 1 | . 1 . Combat Hostiles 1 | . 1 . Parts Melted 2 | . 2 . Heat Transferred 1536 | . 1203 333 Parts Sabotaged . | . . . Parts Stolen . | . . . Parts Stripped . | . . . Power Chain Reactions . | . . . Alert | -11 -10 -9 ------- Run | Yrd Mat Mat Maximum Alert Level . | . . . Low Security (%) 100 | 100 100 100 Level 1 . | . . . Level 2 . | . . . Level 3 . | . . . Level 4 . | . . . Level 5 . | . . . High Security . | . . . Max Security . | . . . Peak Influence 131 | . 72 131 Initial 9 | . . 9 Average 33 | . 14 48 Influence Increases 749 | . 280 469 Destroy 0b10 Robot/C 540 | . 200 340 Destroy 0b10 Robot/NC 25 | . 10 15 Destroy Leader 134 | . 50 84 Successful Hack 33 | . 18 15 Destroy Structure 2 | . 2 . Lose Combat Pursuer 15 | . . 15 Influence Decreases 722 | . 256 466 Entered New Map 15 | . . 15 Time Decay 597 | . 256 341 Lost Part 110 | . . 110 Squads Dispatched 6 | . 4 2 Investigation 5 | . 4 1 Extermination . | . . . Reinforcement 1 | . . 1 Assault . | . . . Garrison . | . . . Intercept . | . . . Searches Triggered . | . . . Construction Impeded . | . . . Haulers Reinforced . | . . . Active Scanning Responses . | . . . Cargo Convoy Interrupts . | . . . Stealth | -11 -10 -9 --------- Run | Yrd Mat Mat Distress Signals 3 | . 1 2 Communications Jammed . | . . . Distress Signals . | . . . Times Spotted 53 | . 19 34 Peak Tracking Total 7 | . 3 7 Tactical Retreats 2 | . 1 1 Traps | -11 -10 -9 ------- Run | Yrd Mat Mat Traps Triggered 6 | . 1 5 Indirectly . | . . . Trap Hack Attempts . | . . . Triggered . | . . . Disarmed . | . . . Reprogrammed . | . . . Reused . | . . . Traps Extracted . | . . . Installed . | . . . Triggered . | . . . Machines | -11 -10 -9 ---------- Run | Yrd Mat Mat Machines Disabled . | . . . Max in Single Turn . | . . . Machines Repaired . | . . . Machines Dismantled . | . . . Machines Sabotaged . | . . . Overloaded Fab Kills . | . . . Hacking | -11 -10 -9 --------- Run | Yrd Mat Mat Machines Accessed 11 | . 5 6 Terminals 8 | . 3 5 Fabricators . | . . . Repair Stations . | . . . Recycling Units 3 | . 2 1 Scanalyzers . | . . . Garrison Access . | . . . Total Hacks 31 | . 17 14 Successful 17 | . 11 6 Failed 14 | . 6 8 Catastrophic 4 | . 1 3 Database Lockouts . | . . . Manual . | . . . Terminals 24 | . 11 13 Fabricators . | . . . Repair Stations . | . . . Recycling Units 7 | . 6 1 Scanalyzers . | . . . Garrison Access . | . . . Terminal Hacks 10 | . 5 5 Record 1 | . . 1 Robot Analysis 3 | . 1 2 Emergency Access Points 1 | . 1 . Alert Level 1 | . . 1 Locate Traps 1 | . 1 . Maintenance Status 1 | . . 1 Hauler Manifests 1 | . 1 . Registered Components 1 | . 1 . Fabricator Hacks . | . . . Repair Station Hacks . | . . . Recycling Unit Hacks 7 | . 6 1 Recycle Component 2 | . 2 . Process 1 | . 1 . Report Inventory 3 | . 2 1 Retrieve Matter 1 | . 1 . Scanalyzer . | . . . Garrison Access Hacks . | . . . Unauthorized Hacks . | . . . Terminals . | . . . Fabricators . | . . . Repair Stations . | . . . Recycling Units . | . . . Scanalyzers . | . . . Garrison Access . | . . . Data Cores Recovered . | . . . Used . | . . . Hacking Detections 8 | . 4 4 Full Trace Events 4 | . 2 2 Feedback Events 2 | . . 2 Corruption 2 | . . 2 Feedback Blocked . | . . . Robot Schematics Acquired . | . . . Robots Built . | . . . Authchips . | . . . Time . | . . . Total Robot Build Rating . | . . . Part Schematics Acquired . | . . . Parts Built . | . . . Authchips . | . . . Time . | . . . Total Part Build Rating . | . . . Part Studies Acquired . | . . . Parts Repaired . | . . . Time . | . . . Parts Recycled 2 | . 2 . Recycled Matter 138 | . 138 . Retrieved Matter 138 | . 138 . Retrieved Components . | . . . Parts Scanalyzed . | . . . Part Schematics Acquired . | . . . Parts Damaged . | . . . Bothacking | -11 -10 -9 ------------ Run | Yrd Mat Mat Used RIF Installer . | . . . Robots Hacked . | . . . Non-combat . | . . . Combat . | . . . Robot Hacks Applied . | . . . Relay Couplers Released . | . . . Fabnet Peak Effective % . | . . . Robots Rewired . | . . . Allies Hacked . | . . . Hacks Repelled . | . . . Allies | -11 -10 -9 -------- Run | Yrd Mat Mat Total Allies . | . . . Largest Group . | . . . Highest-Rated Group . | . . . Highest-Rated Ally . | . . . Total Orders . | . . . Ally Attacks . | . . . Total Damage . | . . . Kills . | . . . Allies Corrupted . | . . . Allies Melted . | . . . Intel | -11 -10 -9 ------- Run | Yrd Mat Mat Active Infowar (turns) 910 | . . 910 Seismic 910 | . . 910 Robot Analysis Total 3 | . 1 2 Derelict Logs Recovered . | . . . Drone Launches . | . . . Drone Recoveries . | . . . Exploration | -11 -10 -9 ------------- Run | Yrd Mat Mat Turns Passed 2813 | 121 1111 1581 Spaces Moved 1149 | 70 518 561 Core 12 | 12 . . Treads 220 | 58 162 . Legs 917 | . 356 561 Wheels . | . . . Hover . | . . . Flight . | . . . Fastest Speed 50 | 50 120 120 Average Speed 176 | 151 169 186 Slowest Speed 330 | 160 190 330 Overloaded Moves . | . . . Propulsion Burnouts . | . . . Robots Hopped . | . . . Potential Cave-ins . | . . . Cave-ins Triggered . | . . . Exploration Rate (%) 38 | 3 65 48 Regions Visited 2 Branch Regions . Pre-discovered Areas . | . . . Known Exits Taken . | . . . Unknown Exits Taken 2 | 1 1 . Scrap Searched . | . . . Spaces Dug . | . . . Terrain Destroyed 1 | . 1 . Melee . | . . . Projectile . | . . . AOE 1 | . 1 . Terrain Rammed . | . . . Walls Destroyed . | . . . Machines Disabled . | . . . Actions | -11 -10 -9 --------- Run | Yrd Mat Mat Total 1736 | 83 684 969 Wait 350 | . 71 279 Move 1148 | 69 518 561 Hop . | . . . Pick Up 37 | 7 22 8 Fast Attach 20 | 6 1 13 Attach 15 | . 5 10 Detach 4 | . 3 1 Swap 13 | . 5 8 Drop 29 | 1 14 14 Fire 115 | . 43 72 Melee 1 | . . 1 Ram . | . . . Kick 4 | . 2 2 Crush . | . . . Escape Stasis . | . . . Rewire . | . . . Trap . | . . . Miscellaneous . | . . . Route ------- -11/Scrapyard -10/Materials (discovered 2 exits: *Mat / [*Min]) -9/Materials (discovered 1 exit: [*Min]) History --------- Turn | Location | Event 16 | -11/Scrapyard | Discovered new exit (range 16) 122 | -11/Scrapyard | Entered Materials 314 | -10/Materials | Build established: Mutant 583 | -10/Materials | Discovered new exit (range 5) 904 | -10/Materials | Discovered new exit (range 14) 1122 | -10/Materials | Derelicts attacked the area 1185 | -10/Materials | Core integrity fell below 50% 1233 | -10/Materials | Entered another Materials area 1233 | -9/Materials | Evolved 2 slots: Propulsion x1, Utility x1 1994 | -9/Materials | Discovered new exit (range 10) 2626 | -9/Materials | Build established: Scavenger-Mutant 2784 | -9/Materials | Core integrity fell below 50% 2802 | -9/Materials | Core integrity fell below 20% 2814 | -9/Materials | Destroyed by G-34 Mercenary with Small Laser Last Messages --------------- 02774_ Aluminum Leg destroyed. 02774_ Critical hit (Burn: +37). 02778_ Imp. Ion Engine destroyed. 02778_ Aluminum Leg destroyed. 02780_ Hvy. Assault Rifle destroyed. 02785_ K-01 Serf collects debris. 02785_ K-01 Serf suffers critical hit (Burn). 02791_ Beam Rifle destroyed. 02798_ M-13 Machinist destroyed. 02800_ R-06 Scavenger collects Flight Unit. 02801_ Critical hit (Destroy). 02801_ Hvy. Assault Rifle destroyed. 02803_ S-10 Pest suffers critical hit (Smash). 02803_ S-10 Pest destroyed. 02803_ Lrg. Matter Pod destroyed. 02806_ K-01 Serf collects debris. 02807_ R-06 Scavenger collects Lgt. Ion Engine. 02808_ K-01 Serf collects debris. 02812_ R-06 Scavenger collects Wheel. 02812_ K-01 Serf collects debris. Map ----- +----------------------------------------------------+ | ???????????????????# # """"" #????????????????? | | ???????????????????# # """" #????????????????? | | ???????????????????# # #????????????????? | | ???????????????????# # " " #????????????????? | | ???????????????????# + ! "R" #????????????????? | | ???????????????????# #% """ #????????????????? | | #######????????????# # #????????????????? | | ! #######?????## ####### ##????????????????? | | # ####### ######################### | | # | | """ + | | """ # | | """ # ####### #### ####### ########????? | | ## ##?????## #### #?????#*#???????????# | | ## #???????# ## #?????# #???????##### | | ##+##### #???????#! !## #?????# #???????# | | ## ##### #???????##!!!!### #?????# #???????#" | | #????????######?# #######+#???????#" | | #???????????????# ## [ #???????#" | | #???????????????# ## #???????#T | | ##+#########???????????????# ## """ #???????#" | | [ #?????????????????# ## """ #???????#" | | """ """ #???????########### ## """ #???????#" | | """ """ #???????# # ## ######### | | """ """ #???????# # ######/## ##+## | | #???????# ] @ # | | ! ! #???????# %g% < | | ##########???????# Y !! k#g w | | ????????????????# r !! # t####+##" "## | | ????????????????## k! s # #???? #" |"! "## | | ?????????????????# % # #?????#"""""""## | | ?????????????????#######+### #?????########## | | ???????????????????????# ??# #????????? ??# | | ???????????????????????# ??# #???????? """?# | | ???????????????????????# ??? #??????? """ # | | ??????????????????????? ???? #??????? """ + | | ??????????????????????? ???? ?????# # | | ??????????????????????? ???? #?????# """ # | | ???????????????????????#????####?????# """?# | | ?????????????????????????????????????# """?# | | ?????????????????????????????????????????? ??# | | ??????????????????????????????????????????????# | | ??????????????????????????????????????????????# | | ??????????????????????????????????????????????# | | ??????????????????????????????????????????????# | | ????????????????????????????????????????????? | | ??????????????????????????????????????????? | | ?????????????????????????????????????????? | | ?????????????????????????????????????????###/##### | | ??????????????????????????????????????????? ????? | +----------------------------------------------------+ Best States ------------- Heat Dissipation 28 Energy Generation 12 Energy Capacity 265 Matter Stores 450 Matter Capacity 450 Sight Range 16 Terrain Scan Density 10 Armor Coverage 150 Core Shielding 20 Power Shielding 33 Evasion (%) 55 Recoil Reduction 2 Item Schematics ----------------- None Robot Schematics ------------------ None Fabricated ------------ Nothing Repaired ---------- Nothing Studied --------- None Alien Tech Used ----------------- None Achievements -------------- Armchair Analyst Challenges ------------ None Game ------ Seed AuthchipSeismicBattery Manual? 0 Play Time 00:32:17 Cumulative 14.3 hours Start 2026.04.13 @ 20:33:32 End 2026.04.13 @ 21:07:48 Sessions 1 Manual Loads 0 Difficulty Rogue Special Mode None Game No. 25 Rogue 25 Adventurer 0 Explorer 0 Win Type - Total 0 Types 0/0/0/0/0/0/0/0/0/0 Lore% 15 Gallery% 13 Achievement% 9 Wizard Run 0 Options --------- Layout 1 ASCII 0 Keyboard 1 Movement Arrows Keybinds 0 Fullscreen 2 Font 24/Smallcaps Map View 50x35 Zoom Use 0% Tactical HUD 1 Map Filters NONE Filters NONE Steam 1 RUN: ce9c8ad7-8ebf-4f55-a8ea-74ee87e1c760